Cogmind - Beta 14 @@@ ROGUE MODE // 2024.08.13 @ 22:25:29 Player: Sionnis Result: Self-destructed Performance ------------- Evolutions (0) 0 Regions Visited (4) 800 Robots Destroyed (32) 160 Value Destroyed (700) 700 Prototype IDs (17) 340 Alien Tech Used (0) 0 Bonus (300) 300 TOTAL SCORE: 2300 Bonus ------- Registered with UFD 300 Cogmind --------- Core Integrity 15/250 Matter 293/300 Energy 210/210 System Corruption 0% Temperature Cool (0) Movement Treading (340) Ox2 Location -7/Scraptown Parts ------- > --- POWER (1+1) ------ Light Deuterium Engine Makeshift Power Source (+) > --- PROPULSION (2+1) - Light Treads Spiked Treads > --- UTILITY (2+1) ---- Huge Storage Unit Machine Analyzer (+) Rainbow Chip > --- WEAPON (2+1) ----- Subdweller Shrapnel Launcher (+) Improved Datajack > --- INVENTORY (25) --- Subdweller Power Source Light Deuterium Engine Airjet Gravmag System Large Storage Unit Enhanced Optical Array Improved Sensor Array Experimental Signal Interpreter Seismic Detector ECM Suite Light Armor Plating Improved Medium Armor Plating Makeshift Light Armor Plating A0-MCA's Component Scanner Subdweller Beam Cannon Subdweller Machine Gun Subdweller Machine Gun Subdweller Machine Gun Makeshift Shrapnel Gun Slug Cannon Slug Cannon CPS Tube (2) Multitool DRS Beacon (Ready) Peak State ------------ > --- POWER ------------ Light Deuterium Engine Makeshift Power Source > --- PROPULSION ------- Light Treads Spiked Treads > --- UTILITY ---------- Huge Storage Unit Rainbow Chip > --- WEAPON ----------- Powered Cannon Subdweller Shrapnel Launcher > --- INVENTORY -------- Subdweller Power Source Light Deuterium Engine Gravmag System Flight Unit Makeshift Flight Unit Large Storage Unit Sensor Array Seismic Detector ECM Suite Light Armor Plating Light Armor Plating Light Armor Plating Improved Medium Armor Plating Makeshift Light Armor Plating Subdweller Beam Cannon Subdweller Machine Gun Subdweller Machine Gun Subdweller Machine Gun Makeshift Shrapnel Gun Slug Cannon Slug Cannon CPS Tube Multitool DRS Beacon [Rating: 46] Favorites ----------- Power Subdweller Power Source Engine Subdweller Power Source Power Core Nuclear Core Propulsion Light Treads Treads Light Treads Utility Huge Storage Unit Device Seismic Detector Storage Huge Storage Unit Processor Rainbow Chip Protection Light Armor Plating Weapon Powered Cannon Energy Gun Medium Laser Energy Cannon Powered Cannon Ballistic Cannon Light Cannon Launcher Subdweller Shrapnel Launcher Special Melee Weapon Improved Datajack Build | -11 -10 -10 -7 -7 ------- Run | Yrd Mat Sub Rec Scr Slots Evolved . | . . . . . Power . | . . . . . Propulsion . | . . . . . Utility . | . . . . . Weapon . | . . . . . Parts Attached 30 | 6 8 11 . 5 Power 7 | 1 . 3 . 3 Engine 6 | 1 . 3 . 2 Core 1 | . . . . 1 Reactor . | . . . . . Propulsion 6 | 2 3 1 . . Treads 6 | 2 3 1 . . Leg . | . . . . . Wheel . | . . . . . Hover . | . . . . . Flight . | . . . . . Utility 9 | 1 3 4 . 1 Device 2 | . 1 1 . . Storage 2 | 1 1 . . . Processor 2 | . . 1 . 1 Hackware . | . . . . . Protection 3 | . 1 2 . . Artifact . | . . . . . Weapon 8 | 2 2 3 . 1 Energy Gun 2 | 2 . . . . Energy Cannon 2 | . . 2 . . Ballistic Gun . | . . . . . Ballistic Cannon 2 | . 2 . . . Launcher 1 | . . 1 . . Special Weapon . | . . . . . Impact Weapon . | . . . . . Slashing Weapon . | . . . . . Piercing Weapon . | . . . . . Special Melee Weapon 1 | . . . . 1 Unidentified Prototypes 1 | . . 1 . . Parts Lost 1 | . . 1 . . Power 1 | . . 1 . . Propulsion . | . . . . . Utility . | . . . . . Weapon . | . . . . . Highest Loss Streak 1 | . . 1 . . To Critical Strikes . | . . . . . Average Slot Usage (%) 82 | . 96 90 63 71 Engine 15 | . 14 21 9 13 Treads 22 | . 27 25 18 18 Device 1 | . 1 2 . . Storage 11 | . 14 12 9 9 Processor 6 | . . . 9 13 Protection 4 | . 9 9 . . Energy Gun 3 | . 14 1 . . Energy Cannon 5 | . . 10 9 4 Ballistic Cannon 4 | . 13 4 . . Launcher 4 | . . . 9 9 Special Melee Weapon 1 | . . . . 4 Peak Build Rating 46 | 6 8 40 39 46 Average Rating 26 | 4 7 21 39 39 On Entrance 18 | . 6 8 39 39 Naked Turns . | . . . . . Heaviest Build 107 | 14 93 107 102 106 Greatest Support 40 | 40 40 40 40 40 Greatest Overweight (x) 3 | 3 2 2 2 2 Average Overweight (x) 1 | . . 2 2 2 Largest Inventory Capacity 25 | 8 25 25 25 25 Average Capacity 23 | 7 16 25 25 25 Most Carried 25 | 2 13 25 24 25 Average Carried 20 | 1 9 23 24 24 Final Capacity 25 | 8 25 25 25 25 Final Carried 24 | 2 13 24 24 24 Class Distribution -------------------- 51% | Mutant 28% | Gunner 20% | Derelict-Mutant Dominant Class ---------------- Mutant | -10/Materials Mutant | -10/Subcaves Gunner | -7/Recycling Gunner | -7/Scraptown Resources | -11 -10 -10 -7 -7 ----------- Run | Yrd Mat Sub Rec Scr Matter Collected 780 | 169 327 126 . 158 Remotely . | . . . . . Salvage Created 762 | . 422 340 . . Parts 56 | . 31 25 . . Haulers Intercepted 2 | . 2 . . . Recyclers Shooed . | . . . . . Parts Field Recycled . | . . . . . Retrieved Matter . | . . . . . Parts Self-Destructed 13 | . . 13 . . Prevented . | . . . . . Kills | -11 -10 -10 -7 -7 ------- Run | Yrd Mat Sub Rec Scr Combat Hostiles Destroyed 25 | . 14 11 . . Guns 7 | . 6 1 . . Cannons 14 | . 8 6 . . AOE 4 | . . 4 . . Classes Destroyed 8 | . 6 2 . . Worker 1 | . 1 . . . Hauler 2 | . 2 . . . Operator 1 | . 1 . . . Turret 2 | . . 2 . . Watcher 1 | . 1 . . . Swarmer 13 | . 9 4 . . Grunt 5 | . 5 . . . Subdweller 7 | . . 7 . . Best Kill Streak 6 | . 5 6 . . Combat Bots Only 5 | . 5 4 . . Max Kills in Single Turn 2 | . 2 2 . . Gunslinging . | . . . . . Exploded 2 | . . 2 . . Melee . | . . . . . Uniques/NPCs Destroyed . | . . . . . Combat | -11 -10 -10 -7 -7 -------- Run | Yrd Mat Sub Rec Scr Hostile Shots Fired 120 | . 79 41 . . Missed 31 | . 19 12 . . Damage Taken 1250 | . 553 697 . . Core 235 | . 80 155 . . Absorbed by Shields . | . . . . . Regen/Repaired (Parts) 293 | . 293 . . . Core Remaining (%) 100 | 100 . . . . Volleys Fired 88 | . 39 49 . . Largest 2 | . 2 2 . . Hottest 115 | . 85 115 . . Shots Fired 137 | . 78 59 . . Gun 43 | . 39 4 . . Cannon 89 | . 39 50 . . Launcher 5 | . . 5 . . Special . | . . . . . Kinetic 53 | . 39 14 . . Thermal 84 | . 39 45 . . Explosive . | . . . . . Electromagnetic . | . . . . . Robot Hit Streak 11 | . 6 11 . . Robot Miss Streak 3 | . 3 3 . . Penetration Max . | . . . . . Secondary Targets . | . . . . . Shots Hit Robots 67 | . 44 23 . . Core Hits 39 | . 26 13 . . Critical Kills . | . . . . . Critical Parts Destroyed . | . . . . . Critical Strikes 3 | . 2 1 . . Blast 3 | . 2 1 . . Melee Attacks . | . . . . . Impact . | . . . . . Slashing . | . . . . . Piercing . | . . . . . Sneak Attacks . | . . . . . Combat Hostiles . | . . . . . Follow-up Attacks . | . . . . . Damage Inflicted 1880 | . 690 1190 . . Guns 386 | . 337 49 . . Cannons 1044 | . 353 691 . . Explosions 450 | . . 450 . . Melee . | . . . . . Ramming . | . . . . . Kinetic 868 | . 353 515 . . Thermal 1012 | . 337 675 . . Explosive . | . . . . . Electromagnetic . | . . . . . Impact . | . . . . . Slashing . | . . . . . Piercing . | . . . . . Highest Corruption . | . . . . . Average Corruption . | . . . . . Corruption Purged . | . . . . . Corruption Blocked . | . . . . . Overload Shots . | . . . . . Overflow Damage 65 | . 9 56 . . Projectiles 26 | . 9 17 . . Explosions 39 | . . 39 . . Melee . | . . . . . Knockbacks 8 | . 6 2 . . Impact . | . . . . . Kinetic 8 | . 6 2 . . Secondary . | . . . . . Self-Inflicted Damage 71 | . . 71 . . Shots 2 | . . 2 . . Rammed . | . . . . . Targets Rammed . | . . . . . Kicked . | . . . . . Crushed . | . . . . . Highest Temperature 192 | . 192 6 . . Average Temperature 43 | . 57 3 . . Received Heat Transfer 192 | . 126 66 . . Siege Activations . | . . . . . Robots Corrupted . | . . . . . Combat Hostiles . | . . . . . Parts Fried . | . . . . . Impact Corruptions . | . . . . . Robots Melted . | . . . . . Combat Hostiles . | . . . . . Parts Melted . | . . . . . Heat Transferred 1295 | . 999 296 . . Parts Sabotaged . | . . . . . Parts Stolen . | . . . . . Parts Stripped . | . . . . . Power Chain Reactions . | . . . . . Alert | -11 -10 -10 -7 -7 ------- Run | Yrd Mat Sub Rec Scr Peak Influence 274 | . 274 . 60 . Initial 60 | . . . 60 . Average 88 | . 103 . 50 . Maximum Alert Level 1 | . 1 . . . Low Security (%) 91 | 100 88 . 100 . Level 1 8 | . 11 . . . Level 2 . | . . . . . Level 3 . | . . . . . Level 4 . | . . . . . Level 5 . | . . . . . High Security . | . . . . . Max Security . | . . . . . Squads Dispatched 2 | . 2 . . . Investigation 2 | . 2 . . . Extermination . | . . . . . Reinforcement . | . . . . . Assault . | . . . . . Garrison . | . . . . . Intercept . | . . . . . Searches Triggered . | . . . . . Construction Impeded . | . . . . . Haulers Reinforced . | . . . . . Active Scanning Responses . | . . . . . Cargo Convoy Interrupts . | . . . . . Stealth | -11 -10 -10 -7 -7 --------- Run | Yrd Mat Sub Rec Scr Distress Signals . | . . . . . Communications Jammed . | . . . . . Distress Signals . | . . . . . Times Spotted 41 | . 17 24 . . Peak Tracking Total 4 | . 4 4 . . Tactical Retreats 2 | . 1 1 . . Traps | -11 -10 -10 -7 -7 ------- Run | Yrd Mat Sub Rec Scr Traps Triggered 4 | . 1 3 . . Indirectly . | . . . . . Trap Hack Attempts . | . . . . . Triggered . | . . . . . Disarmed . | . . . . . Reprogrammed . | . . . . . Reused . | . . . . . Traps Extracted . | . . . . . Installed . | . . . . . Triggered 1 | . . 1 . . Machines | -11 -10 -10 -7 -7 ---------- Run | Yrd Mat Sub Rec Scr Machines Disabled 6 | . 1 5 . . Max in Single Turn 3 | . 1 3 . . Machines Repaired . | . . . . . Machines Dismantled . | . . . . . Machines Sabotaged . | . . . . . Overloaded Fab Kills . | . . . . . Hacking | -11 -10 -10 -7 -7 --------- Run | Yrd Mat Sub Rec Scr Machines Accessed 12 | . 9 2 . 1 Terminals 6 | . 6 . . . Fabricators . | . . . . . Repair Stations 1 | . 1 . . . Recycling Units 2 | . 2 . . . Scanalyzers . | . . . . . Garrison Access . | . . . . . Total Hacks 38 | . 30 5 . 3 Successful 25 | . 17 5 . 3 Failed 12 | . 12 . . . Catastrophic 1 | . 1 . . . Database Lockouts 1 | . 1 . . . Manual 17 | . 17 . . . Terminals 20 | . 20 . . . Fabricators . | . . . . . Repair Stations 6 | . 6 . . . Recycling Units 4 | . 4 . . . Scanalyzers . | . . . . . Garrison Access . | . . . . . Terminal Hacks 11 | . 3 5 . 3 Record 7 | . . 4 . 3 Robot Analysis 1 | . 1 . . . Locate Traps 1 | . 1 . . . Hauler Manifests 1 | . 1 . . . Derelict Proto ID Bank 1 | . . 1 . . Fabricator Hacks . | . . . . . Repair Station Hacks 6 | . 6 . . . Scan Component 3 | . 3 . . . Repair 3 | . 3 . . . Recycling Unit Hacks 1 | . 1 . . . Retrieve Components 1 | . 1 . . . Scanalyzer . | . . . . . Garrison Access Hacks . | . . . . . Unauthorized Hacks 7 | . 7 . . . Terminals 7 | . 7 . . . Botnet 1 | . 1 . . . Operators 1 | . 1 . . . Skim 5 | . 5 . . . Fabricators . | . . . . . Repair Stations . | . . . . . Recycling Units . | . . . . . Scanalyzers . | . . . . . Garrison Access . | . . . . . Data Cores Recovered . | . . . . . Used . | . . . . . Hacking Detections 8 | . 8 . . . Full Trace Events 1 | . 1 . . . Feedback Events . | . . . . . Feedback Blocked . | . . . . . Robot Schematics Acquired . | . . . . . Robots Built . | . . . . . Authchips . | . . . . . Time . | . . . . . Total Robot Build Rating . | . . . . . Part Schematics Acquired . | . . . . . Parts Built . | . . . . . Authchips . | . . . . . Time . | . . . . . Total Part Build Rating . | . . . . . Parts Repaired 3 | . 3 . . . Time 78 | . 78 . . . Parts Recycled . | . . . . . Recycled Matter . | . . . . . Retrieved Matter . | . . . . . Retrieved Components 1 | . 1 . . . Parts Scanalyzed . | . . . . . Part Schematics Acquired . | . . . . . Parts Damaged . | . . . . . Bothacking | -11 -10 -10 -7 -7 ------------ Run | Yrd Mat Sub Rec Scr Used RIF Installer . | . . . . . Robots Hacked . | . . . . . Non-combat . | . . . . . Combat . | . . . . . Robot Hacks Applied . | . . . . . Relay Couplers Released . | . . . . . Fabnet Peak Effective % . | . . . . . Robots Rewired . | . . . . . Allies Hacked . | . . . . . Hacks Repelled . | . . . . . Allies | -11 -10 -10 -7 -7 -------- Run | Yrd Mat Sub Rec Scr Total Allies . | . . . . . Largest Group . | . . . . . Highest-Rated Group . | . . . . . Highest-Rated Ally . | . . . . . Total Orders . | . . . . . Ally Attacks . | . . . . . Total Damage . | . . . . . Kills . | . . . . . Allies Corrupted . | . . . . . Allies Melted . | . . . . . Intel | -11 -10 -10 -7 -7 ------- Run | Yrd Mat Sub Rec Scr Robot Analysis Total 1 | . 1 . . . Derelict Logs Recovered 5 | . . . . 5 Drone Launches . | . . . . . Drone Recoveries . | . . . . . Exploration | -11 -10 -10 -7 -7 ------------- Run | Yrd Mat Sub Rec Scr Turns Passed 7640 | 65 1642 2281 473 3179 Spaces Moved 2359 | 41 602 649 140 927 Core 16 | 16 . . . . Treads 2343 | 25 602 649 140 927 Legs . | . . . . . Wheels . | . . . . . Hover . | . . . . . Flight . | . . . . . Fastest Speed 50 | 50 160 320 340 340 Average Speed 304 | 134 225 328 340 340 Slowest Speed 340 | 200 320 340 340 340 Overloaded Moves . | . . . . . Propulsion Burnouts . | . . . . . Robots Hopped . | . . . . . Cave-ins Triggered . | . . . . . Exploration Rate (%) 39 | 3 69 32 33 62 Regions Visited 4 Branch Regions 3 Pre-discovered Areas 6 | . 2 2 . 2 Known Exits Taken 2 | . 1 1 . . Unknown Exits Taken 2 | 1 . . 1 . Scrap Searched 7 | . . 4 . 3 Spaces Dug 8 | . . 8 . . Terrain Destroyed 70 | . . 70 . . Melee . | . . . . . Projectile 12 | . . 12 . . AOE 58 | . . 58 . . Terrain Rammed . | . . . . . Walls Destroyed . | . . . . . Machines Disabled . | . . . . . Actions | -11 -10 -10 -7 -7 --------- Run | Yrd Mat Sub Rec Scr Total 2707 | 48 814 748 139 958 Wait 143 | . 139 4 . . Move 2355 | 40 601 648 139 927 Hop . | . . . . . Pick Up 54 | 2 17 22 . 13 Fast Attach 18 | 6 6 1 . 5 Attach 2 | . . 2 . . Detach 1 | . 1 . . . Swap 10 | . 2 8 . . Drop 36 | . 9 14 . 13 Fire 88 | . 39 49 . . Melee . | . . . . . Ram . | . . . . . Kick . | . . . . . Crush . | . . . . . Escape Stasis . | . . . . . Rewire . | . . . . . Trap . | . . . . . Miscellaneous . | . . . . . Route ------- -11/Scrapyard -10/Materials (discovered 6 exits: *Mat x3 / [*Min x2] / *Sub) -10/Subcaves (discovered 3 exits: *Mat x2 / *Rec) -7/Recycling -7/Scraptown (discovered 1 exit: [*Fac]) History --------- Turn | Location | Event 21 | -11/Scrapyard | Discovered new exit (range 16) 66 | -11/Scrapyard | Entered Materials 66 | -10/Materials | Discovered new exit (range 15) 309 | -10/Materials | Build established: Mutant 499 | -10/Materials | Discovered new exit (range 16) 773 | -10/Materials | Repaired Lgt. Cannon 800 | -10/Materials | Repaired Lgt. Treads 828 | -10/Materials | Repaired Lgt. Treads 843 | -10/Materials | Central database locked down 848 | -10/Materials | Discovered new exit (range 16) 1554 | -10/Materials | Learned location of 1 exit from Storage 1591 | -10/Materials | Identified exit to Subcaves 1591 | -10/Materials | Identified exit to Materials 1617 | -10/Materials | Learned location of 1 exit from Storage 1634 | -10/Materials | Loaded intel: 2 recycling unit locations 1641 | -10/Materials | Learned location of Mines (-9) 1643 | -10/Materials | Learned 4 Subcaves zone layouts 1644 | -10/Materials | Learned Storage stockpile data 1655 | -10/Materials | Learned location of 2 exits from Materials 1675 | -10/Materials | Learned location of Mines (-10) 1708 | -10/Materials | Entered Subcaves 1709 | -10/Subcaves | Identified exit to Materials 1709 | -10/Subcaves | Identified exit to Recycling 1828 | -10/Subcaves | A swath of the cavern ceiling suddenly collapsed 1905 | -10/Subcaves | Shifting Twisted Machinery released Mak. Light Armor Plating 1918 | -10/Subcaves | Ambushed by swarm of Subdwellers 2133 | -10/Subcaves | Learned location of Zion (-7) 2133 | -10/Subcaves | Met a Zionite searching for "candidates" 2254 | -10/Subcaves | Core integrity fell below 50% 2368 | -10/Subcaves | A Subdweller sparked back to life 2368 | -10/Subcaves | A Subdweller sparked back to life 2368 | -10/Subcaves | A Subdweller sparked back to life 2398 | -10/Subcaves | Found Prototype Energy Cannon 2398 | -10/Subcaves | Identified Powered Cannon 2399 | -10/Subcaves | Attached Powered Cannon, gained temporary slot: Power 2620 | -10/Subcaves | A swath of the cavern ceiling suddenly collapsed 3013 | -10/Subcaves | Visited Clippyterm 3023 | -10/Subcaves | Learned location of Deep Caves (-7) 3023 | -10/Subcaves | Learned Factory stockpile data 3308 | -10/Subcaves | Visited 4L-MR0's lab 3347 | -10/Subcaves | Found Rainbow Chip 3707 | -10/Subcaves | Shifting Twisted Machinery released Mak. Shrapnel Gun 3707 | -10/Subcaves | Shifting Twisted Machinery released Battle Cannon 3739 | -10/Subcaves | Discovered exit to Materials (range 12) 3929 | -10/Subcaves | Attached Rainbow Chip, gained temporary slots: Power, Propulsion, Utility, Weapon 3945 | -10/Subcaves | Core integrity fell below 20% 3989 | -10/Subcaves | Entered Recycling 4216 | -7/Recycling | Build established: Gunner 4384 | -7/Recycling | Scanned before Scraplab entrance 4431 | -7/Recycling | Entered Scraplab 4459 | -7/Recycling | Discovered new exit (range 2) 4462 | -7/Recycling | Entered Scraptown 4554 | -7/Scraptown | Heard Great Nut preacher, LISTEN AND RECITE! 4677 | -7/Scraptown | Visited UFD Registry 4677 | -7/Scraptown | Registered with UFD as "Thermobox" 4843 | -7/Scraptown | Scanned Subdweller tech in exchange for log data 4850 | -7/Scraptown | Learned location of Armory (-3) 4853 | -7/Scraptown | Learned Factory terminal intel 4857 | -7/Scraptown | Learned Research garrison access intel 4860 | -7/Scraptown | Learned Factory emergency access door positions 4864 | -7/Scraptown | Learned location of Warlord (-4) 4894 | -7/Scraptown | Discovered new exit (range 11) 4990 | -7/Scraptown | Guru changed UFD alias to "Pyroflow" 5473 | -7/Scraptown | Delivered Scrap Shield to a Scientist 5795 | -7/Scraptown | Visited Derelict Rescue Squad 5815 | -7/Scraptown | Found DRS Beacon 6007 | -7/Scraptown | Visited DA-N13 Charitable Foundation 6046 | -7/Scraptown | Found DCF Scrap (27 items) 6198 | -7/Scraptown | Visited Abandonware Association 6222 | -7/Scraptown | Learned abandonware demo "OVRCLOCK.EXE" 6236 | -7/Scraptown | Learned abandonware demo "REVENGE.EXE" 6300 | -7/Scraptown | Visited Modified Component R&D 6413 | -7/Scraptown | Build established: Derelict-Mutant 6426 | -7/Scraptown | Visited Junk Repository 6622 | -7/Scraptown | Visited A0-MCA Data Center 6642 | -7/Scraptown | Given a C- rating by A0-MCA 6649 | -7/Scraptown | Found A0-MCA's Component Scanner 6718 | -7/Scraptown | Visited Scrap Suit Storage 6854 | -7/Scraptown | Visited Infowarlord's Domain 6875 | -7/Scraptown | Found Exp. Signal Interpreter 6934 | -7/Scraptown | Visited Research Penetration Think Tank 7009 | -7/Scraptown | Visited Scrapoid Research Area 7216 | -7/Scraptown | Visited Fellowship of the Rings 7345 | -7/Scraptown | Visited TADAMA 7417 | -7/Scraptown | Visited The Evicted 7519 | -7/Scraptown | Visited Shadow of the Wyrm 7563 | -7/Scraptown | Visited Assassins FH 7614 | -7/Scraptown | Visited SPCMW 7641 | -7/Scraptown | Self-destructed Last Messages --------------- Let us know if you find any clues! YX-AII(h): Do you have any information on this PL-3XN's whereabouts? UZ-32U(g): "XCOM - Xom Commends our Malaise!" UZ-32U(g): "For the DCSS fans like me, when we need a little consolation following torture at the hands of the RNG of life." LOCAL NARROWCAST: TADAMA. YNGWTM. OK-MPX(p): They may not like us, but we're living proof that YMMV when it comes to UFD member quality. You'll do well to remember that. LOCAL NARROWCAST: The Evicted. UK-Z6M(z): Were you kicked out of Zion, too? LOCAL NARROWCAST: Shadow of the Wyrm. An epic journey awaits! LOCAL NARROWCAST: Assassins FH. No refunds regardless of unexpected side effects. LOCAL NARROWCAST: SPCMW. Please do not feed the Recyclers. Map ----- +----------------------------------------------------+ | ### ##"""""" ""#"" """"""#???????????????????? | | #???????????????????? | | #???????????????????? | | #???????????????????? | | ### ##########"" """"#####???????????????????? | | ??## ##????????#" "#???????????????????????? | | ???# #########?#" ""#???????????????????????? | | ??# """"""""#?#" """#???????????????????????? | | ### " ""#?#" """#???????????????????????? | | """ "#?#"""""""#???????????????????????? | | """ " ""#?#########???????????????????????? | | " """"""""#??????????????????????????#######? | | ##"""####??????#######?????????????" !"?? | | "" " ############??# #???????????#" "?? | | " #?# #?# """""" #???????####X ##? | | """" ### ### "" "" #???????#"! "#? | | #### ##" "## " " #???????#"! !"#? | | ???# ##""""""""""## " " #???????#" "#? | | #### #" "# " " ????????#"! !"#? | | #" "# " " #???????#" !"#? | | #" "# "" "" #???????## ##? | | #### # #c """""" #???????# #? | | ??# # ## #????????####### ##? | | ?### ### ############ ##########???????##### ### | | ?# #???????#"""" """ | | ?# @ #???????#" | | ## #???????#" | | # #???????#" | | # #???????#" | | # ################# #????####" | | # #???????????????# #????"""" "" | | # #???????????????# #????"""" "" | | # #???????????????# #????"""" "" | | #???????????????# #????"""" "" | | # #???????????????# #????"""" "" | | ## #???????????????# ###?#"""" "" | | ?# #???????????????# ""#"#"""" "" | | ?# #???????#???????# j""""#"""" "" | | ?# #???????# """"#?# ""#######" "" | | ## #???????# || #?# ###?????#" "" | | "# #???????# """"#?# #########" "" | | "# #???????# | | #?# "" | | # #???????# """"#?# "" | | # #???????# || #?# "" | | # #????????? #?# "" | | # ############ #### "" | | # "" | | "" | | "# | | "# | +----------------------------------------------------+ Best States ------------- Heat Dissipation 35 Energy Generation 24 Energy Capacity 350 Matter Stores 300 Matter Capacity 300 Sight Range 16 Terrain Scan Density 10 Armor Coverage 150 Evasion (%) 50 Recoil Reduction 2 Item Schematics ----------------- None Robot Schematics ------------------ None Fabricated ------------ Nothing Alien Tech Used ----------------- None Achievements -------------- None Challenges ------------ None Game ------ Seed DefenseSmallLeg Manual? 0 Play Time 00:26:41 Cumulative 561.2 hours Start 2024.08.13 @ 21:57:39 End 2024.08.13 @ 22:25:29 Sessions 3 Manual Loads 0 Difficulty Rogue Special Mode None Game No. 327 Rogue 327 Adventurer 0 Explorer 0 Win Type - Total 36 Types 22/2/4/3/1/1/1/1/1 Lore% 97 Gallery% 98 Achievement% 98 Wizard Run 0 Options --------- Layout 1 ASCII 0 Keyboard 0 Movement Numpad Keybinds 0 Fullscreen 1 Font 24/Smallcaps Map View 50x35 Zoom Use 0% Tactical HUD 1 Map Filters NONE Filters NONE Steam 1 RUN: 041906a6-b9df-4f30-949a-ff49bd4cf5fc